fUST/lending_fUST_20240123
["ID","MTS","AMOUNT","RATE_DAILY","PERIOD"]
[312559128,1705994629991,-500.0,0.00041369,31]
[312559129,1705994630015,-500.0,0.00041369,31]
[312559130,1705994630040,-500.0,0.00041369,31]
[312559131,1705994630065,-503.4570769,0.00041369,31]
[312559132,1705994630090,-516.00841721,0.00041369,31]
[312559133,1705994630114,-500.0,0.00041369,31]
[312559134,1705994630139,-500.0,0.00041369,31]
[312559135,1705994630163,-500.0,0.00041369,31]
[312559136,1705994630187,-500.0,0.00041369,31]
[312559137,1705994630212,-500.0,0.00041369,31]
[312559138,1705994630237,-503.33180468,0.00041369,31]
[312559139,1705994630262,-676.15,0.00041369,31]
[312559140,1705994630287,-504.24653438,0.00041369,31]
[312559141,1705994630312,-500.0,0.00041369,31]
[312559142,1705994630336,-503.21573471,0.00041369,31]
[312559143,1705994630360,-500.0,0.00041369,31]
[312559144,1705994630385,-500.0,0.00041369,31]
[312559145,1705994630411,-500.0,0.00041369,31]
[312559146,1705994630435,-502.60603955,0.00041369,31]
[312559147,1705994630460,-501.76170025,0.00041369,31]
[312559148,1705994630484,-501.26540268,0.00041369,31]
[312559149,1705994630509,-502.46264407,0.00041369,31]
[312559150,1705994630535,-550.0,0.00041369,31]
[312559151,1705994630559,-509.37026502,0.00041369,31]
[312559152,1705994630584,-500.0,0.00041369,31]
[312559153,1705994630609,-501.91257644,0.00041369,31]
[312559154,1705994630634,-500.0,0.00041369,31]
[312559155,1705994630658,-205.58270534,0.00041369,31]
[312559156,1705994630682,-511.22202753,0.00041369,31]
[312559157,1705994630711,-511.85739276,0.00041369,31]
[312559158,1705994630747,-500.0,0.00041369,31]
[312559159,1705994630771,-500.0,0.00041369,31]
[312559160,1705994630796,-500.0,0.00041369,31]
[312559161,1705994630820,-500.0,0.00041369,31]
[312559162,1705994630962,-502.12314983,0.00041369,31]
[312559163,1705994630987,-500.0,0.00041369,31]
[312559164,1705994631011,-500.0,0.00041369,31]
[312559165,1705994631036,-506.4374797,0.00041369,31]
[312559166,1705994631060,-500.0,0.00041369,31]
[312559167,1705994631084,-500.0,0.00041369,31]
[312559168,1705994631109,-503.35015453,0.00041369,31]
[312559169,1705994631134,-500.0,0.00041369,31]
[312559170,1705994631158,-500.0,0.00041369,31]
[312559171,1705994631182,-500.0,0.00041369,31]
[312559172,1705994631205,-500.0,0.00041369,31]
[312559173,1705994631228,-407.22148578,0.00041369,31]
[312559174,1705994631253,-752.44,0.00041369,31]
[312559175,1705994631276,-502.11576307,0.00041369,31]
[312559176,1705994631301,-500.0,0.00041369,31]
[312559177,1705994631326,-385.90365149,0.00041369,31]
[312559178,1705994631351,-500.0,0.00041369,31]
[312559179,1705994631375,-502.23335856,0.00041369,31]
[312559180,1705994631400,-625.17,0.00041369,31]
[312559181,1705994631423,-500.0,0.00041369,31]
[312559182,1705994631447,-500.0,0.00041369,31]
[312559183,1705994631471,-182.0261403,0.00041369,31]
[312559184,1705994631496,-503.84561875,0.00041369,31]
[312559185,1705994631520,-517.19504921,0.00041369,30]
[312559186,1705994631543,-503.83046356,0.00041369,31]
[312559187,1705994631567,-501.83265453,0.00041369,31]
[312559188,1705994631590,-500.0,0.00041369,31]
[312559189,1705994631615,-500.0,0.00041369,31]
[312559190,1705994631639,-500.0,0.00041369,31]
[312559191,1705994631662,-213.77792659,0.00041369,31]
[312559192,1705994631685,-502.12208671,0.00041369,31]
[312559193,1705994631708,-500.0,0.00041369,31]
[312559194,1705994631736,-508.16191692,0.00041369,31]
[312559195,1705994631760,-504.10499287,0.00041369,31]
[312559196,1705994631783,-500.0,0.00041369,31]
[312559197,1705994631809,-501.48304703,0.00041369,31]
[312559198,1705994631833,-1224.59,0.00041369,31]
[312559199,1705994631856,-500.0,0.00041369,31]
[312559200,1705994631880,-500.0,0.00041369,31]
[312559201,1705994631903,-500.0,0.00041369,31]
[312559202,1705994631927,-500.0,0.00041369,31]
[312559203,1705994631951,-500.0,0.00041369,31]
[312559204,1705994631974,-500.0,0.00041369,31]
[312559205,1705994631998,-500.0,0.00041369,31]
[312559206,1705994632022,-1344.97,0.00041369,31]
[312559207,1705994632047,-500.0,0.00041369,31]
[312559208,1705994632072,-500.0,0.00041369,31]
[312559209,1705994632096,-604.51087861,0.00041369,31]
[312559210,1705994632121,-634.17767258,0.00041369,31]
[312559211,1705994632145,-500.0,0.00041369,31]
[312559212,1705994632170,-500.0,0.00041369,31]
[312559213,1705994632195,-503.52906368,0.00041369,31]
[312559214,1705994632220,-500.0,0.00041369,31]
[312559215,1705994632245,-1755.36,0.00041369,31]
[312559216,1705994632270,-1542.37,0.00041369,31]
[312559217,1705994632295,-500.0,0.00041369,31]
[312559218,1705994632319,-500.0,0.00041369,31]
[312559219,1705994632343,-501.75359453,0.00041369,31]
[312559220,1705994632367,-500.0,0.00041369,31]
[312559221,1705994632390,-500.0,0.00041369,31]
[312559222,1705994632418,-500.0,0.00041369,31]
[312559223,1705994632442,-500.0,0.00041369,31]
[312559224,1705994632465,-500.0,0.00041369,31]
[312559225,1705994632489,-201.97481586,0.00041369,31]
[312559226,1705994632512,-500.0,0.00041369,31]
[312559227,1705994632536,-500.0,0.00041369,31]
[312559228,1705994632560,-268.81809156,0.00041369,31]
[312559229,1705994632586,-500.0,0.00041369,31]
[312559230,1705994632614,-1570.82,0.00041369,31]
[312559231,1705994632639,-500.0,0.00041369,31]
[312559232,1705994632665,-500.76743036,0.00041369,31]
[312559233,1705994632690,-501.54787618,0.00041369,31]
[312559234,1705994632718,-500.0,0.00041369,31]
[312559235,1705994632745,-500.0,0.00041369,31]
[312559236,1705994632773,-500.0,0.00041369,31]
[312559237,1705994632798,-309.83729002,0.00041369,31]
[312559238,1705994632822,-500.0,0.00041369,31]
[312559239,1705994632846,-500.0,0.00041369,31]
[312559240,1705994632869,-581.0,0.00041369,31]
[312559241,1705994632893,-505.7637884,0.00041369,31]
[312559242,1705994632917,-500.0,0.00041369,31]
[312559243,1705994632939,-501.35588076,0.00041369,31]
[312559244,1705994632963,-500.0,0.00041369,31]
[312559245,1705994632986,-500.0,0.00041369,31]
[312559246,1705994633009,-500.0,0.00041369,31]
[312559247,1705994633032,-500.0,0.00041369,31]
[312559248,1705994633055,-500.0,0.00041369,31]
[312559249,1705994633078,-500.0,0.00041369,31]
[312559250,1705994633100,-500.0,0.00041369,31]
[312559251,1705994633221,-1622.72,0.00041369,31]
[312559252,1705994633250,-1545.31,0.00041369,31]
[312559253,1705994633272,-500.0,0.00041369,31]
[312559254,1705994633298,-1909.61,0.00041369,31]
[312559255,1705994633321,-500.0,0.00041369,31]
[312559256,1705994633347,-500.0,0.00041369,31]
[312559257,1705994633371,-500.0,0.00041369,31]
[312559258,1705994633394,-633.10167201,0.00041369,31]
[312559259,1705994633417,-500.0,0.00041369,31]
[312559260,1705994633442,-500.0,0.00041369,31]
[312559261,1705994633465,-573.23,0.00041369,31]
[312559262,1705994633490,-953.96,0.00041369,31]
[312559263,1705994633513,-500.0,0.00041369,31]
[312559264,1705994633539,-1776.09,0.00041369,31]
[312559265,1705994633564,-514.25206482,0.00041369,31]
[312559266,1705994633588,-500.0,0.00041369,31]
[312559267,1705994633613,-500.0,0.00041369,31]
[312559268,1705994633637,-677.48,0.00041369,31]
[312559269,1705994633660,-511.19510128,0.00041369,31]
[312559270,1705994633683,-500.0,0.00041369,31]
[312559271,1705994633707,-500.0,0.00041369,31]
[312559272,1705994633733,-1795.13,0.00041369,31]
[312559273,1705994633758,-350.40871583,0.00041369,31]
[312559274,1705994633783,-559.67436705,0.00041369,31]
[312559275,1705994633807,-500.0,0.00041369,31]
[312559276,1705994633830,-500.0,0.00041369,31]
[312559277,1705994633854,-502.71475331,0.00041369,31]
[312559278,1705994633878,-675.39,0.00041369,31]
[312559279,1705994633903,-500.0,0.00041369,31]
[312559280,1705994633927,-500.0,0.00041369,31]
[312559281,1705994633951,-500.0,0.00041369,31]
[312559282,1705994633974,-500.0,0.00041369,31]
[312559283,1705994633997,-500.0,0.00041369,31]
[312559284,1705994634021,-500.0,0.00041369,31]
[312559285,1705994634046,-558.18,0.00041369,31]
[312559286,1705994634072,-500.0,0.00041369,31]
[312559287,1705994634098,-1792.37,0.00041369,31]
[312559288,1705994634122,-501.94403874,0.00041369,31]
[312559289,1705994634146,-500.0,0.00041369,31]
[312559290,1705994634171,-500.0,0.00041369,31]
[312559291,1705994634195,-871.27,0.00041369,31]
[312559292,1705994634218,-500.0,0.00041369,31]
[312559293,1705994634243,-1840.41,0.00041369,31]
[312559294,1705994634267,-500.0,0.00041369,31]
[312559295,1705994634292,-1341.38,0.00041369,31]
[312559296,1705994634316,-501.68714893,0.00041369,31]
[312559297,1705994634340,-1156.76,0.00041369,31]
[312559298,1705994634363,-500.0,0.00041369,31]
[312559299,1705994634387,-500.0,0.00041369,31]
[312559300,1705994634410,-500.0,0.00041369,31]
[312559301,1705994634434,-500.0,0.00041369,31]
[312559302,1705994634457,-500.0,0.00041369,31]
[312559303,1705994634480,-502.24480662,0.00041369,31]
[312559304,1705994634504,-500.0,0.00041369,31]
[312559305,1705994634529,-500.0,0.00041369,31]
[312559306,1705994634553,-500.0,0.00041369,31]
[312559307,1705994634575,-504.43274046,0.00041369,31]
[312559308,1705994634599,-528.92982999,0.00041369,31]
[312559309,1705994634623,-500.0,0.00041369,31]
[312559310,1705994634646,-500.0,0.00041369,31]
[312559311,1705994634670,-500.0,0.00041369,31]
[312559312,1705994634693,-500.0,0.00041369,31]
[312559313,1705994634718,-1448.75,0.00041369,31]
[312559314,1705994634742,-500.0,0.00041369,31]
[312559315,1705994634765,-229.86827341,0.00041369,31]
[312559316,1705994634789,-1955.39,0.00041369,31]
[312559317,1705994634814,-504.04533746,0.00041369,31]
[312559318,1705994634839,-500.0,0.00041369,31]
[312559319,1705994634863,-1202.86,0.00041369,31]
[312559320,1705994634886,-500.0,0.00041369,31]
[312559321,1705994634910,-150.0,0.000414,30]
[312559322,1705994634934,-500.0,0.0004145,30]
[312559323,1705994634957,-150.98638474,0.00041497,30]
[312559324,1705994634982,-348.140272,0.00041553,120]
[312559325,1705994635006,-150.0,0.000416,30]
[312559326,1705994635032,-284.85,0.00041643,31]
[312559327,1705994635055,-380.39323454,0.00041643,31]
[312559328,1705994635079,-831.77,0.00041643,31]
[312559329,1705994635103,-500.0,0.00041643,31]
[312559330,1705994635126,-500.0,0.00041643,31]
[312559331,1705994635149,-665.99,0.00041643,31]
[312559332,1705994635173,-500.0,0.00041643,31]
[312559333,1705994635197,-500.0,0.00041643,31]
[312559334,1705994635220,-500.0,0.00041643,31]
[312559335,1705994635244,-542.16,0.00041643,31]
[312559336,1705994635266,-580.9911771,0.00041643,31]
[312559337,1705994635289,-500.0,0.00041643,31]
[312559338,1705994635417,-500.0,0.00041643,31]
[312559339,1705994635441,-625.12,0.00041643,31]
[312559340,1705994635465,-590.78448213,0.00041643,31]
[312559341,1705994635489,-200.0,0.00041643,31]
[312559342,1705994635512,-150.0,0.00041643,31]
[312559343,1705994635535,-500.0,0.00041643,31]
[312559344,1705994635558,-639.7967895,0.00041643,31]
[312559345,1705994635582,-408.47730241,0.00041643,31]
[312559346,1705994635607,-500.0,0.00041643,31]
[312559347,1705994635631,-500.0,0.00041643,31]
[312559348,1705994635655,-500.0,0.00041643,31]
[312559349,1705994635679,-500.0,0.00041643,31]
[312559350,1705994635704,-500.0,0.00041643,31]
[312559351,1705994635728,-500.0,0.00041643,31]
[312559352,1705994635751,-500.0,0.00041643,31]
[312559353,1705994635775,-500.0,0.00041643,31]
[312559354,1705994635799,-500.0,0.00041643,31]
[312559355,1705994635822,-500.0,0.00041643,31]
[312559356,1705994635845,-500.0,0.00041643,31]
[312559357,1705994635868,-500.0,0.00041643,31]
[312559358,1705994635892,-500.0,0.00041643,31]
[312559359,1705994635915,-500.0,0.00041643,31]
[312559360,1705994635938,-500.0,0.00041643,31]
[312559361,1705994635962,-568.93154402,0.00041643,31]
[312559362,1705994635994,-495.26917677,0.00041643,31]
[312559363,1705994636016,-500.0,0.00041643,31]
[312559364,1705994636040,-500.0,0.00041643,31]
[312559365,1705994636064,-510.40685015,0.00041643,31]
[312559366,1705994636088,-500.0,0.00041643,31]
[312559367,1705994636112,-561.32,0.00041643,31]
[312559368,1705994636135,-500.0,0.00041643,31]
[312559369,1705994636160,-613.54,0.00041643,31]
[312559370,1705994636185,-506.73162037,0.00041643,31]
[312559371,1705994636209,-500.0,0.00041643,31]
[312559372,1705994636234,-500.0,0.00041643,31]
[312559373,1705994636259,-1320.3,0.00041643,31]
[312559374,1705994636283,-500.0,0.00041643,31]
[312559375,1705994636307,-500.0,0.00041643,31]
[312559376,1705994636330,-500.0,0.00041643,31]
[312559377,1705994636354,-515.08,0.00041643,31]
[312559378,1705994636378,-1319.31,0.00041643,31]
[312559379,1705994636402,-506.48132519,0.00041643,31]
[312559380,1705994636425,-500.0,0.00041643,31]
[312559381,1705994636448,-500.0,0.00041643,31]
[312559382,1705994636471,-500.0,0.00041643,31]
[312559383,1705994636495,-555.72,0.00041643,31]
[312559384,1705994636517,-500.0,0.00041643,31]
[312559385,1705994636540,-500.0,0.00041643,31]
[312559386,1705994636563,-500.0,0.00041643,31]
[312559387,1705994636588,-507.37285184,0.00041643,31]
[312559388,1705994636611,-500.0,0.00041643,31]
[312559389,1705994636635,-500.0,0.00041643,31]
[312559390,1705994636659,-500.0,0.00041643,31]
[312559391,1705994636683,-500.0,0.00041643,31]
[312559392,1705994636707,-963.53,0.00041643,31]
[312559393,1705994636734,-502.65206238,0.00041643,31]
[312559394,1705994636758,-500.0,0.00041643,31]
[312559395,1705994636783,-348.04663423,0.00041643,31]
[312559396,1705994636809,-1701.55,0.00041643,31]
[312559397,1705994636833,-548.1717107,0.00041643,31]
[312559398,1705994636856,-500.0,0.00041643,31]
[312559399,1705994636879,-1185.15,0.00041643,31]
[312559400,1705994636901,-496.92122167,0.00041643,31]
[312559401,1705994636925,-507.36393559,0.00041643,31]
[312559402,1705994636948,-848.7,0.00041643,31]
[312559403,1705994636972,-500.0,0.00041643,31]
[312559404,1705994636995,-500.0,0.00041643,31]
[312559405,1705994637019,-500.0,0.00041643,31]
[312559406,1705994637043,-500.0,0.00041643,31]
[312559407,1705994637066,-500.0,0.00041643,31]
[312559408,1705994637089,-359.2665874,0.00041643,31]
[312559409,1705994637112,-500.0,0.00041643,31]
[312559410,1705994637136,-500.0,0.00041643,31]
[312559411,1705994637160,-500.0,0.00041643,31]
[312559412,1705994637185,-500.0,0.00041643,31]
[312559413,1705994637210,-676.15,0.00041643,31]
[312559414,1705994637234,-500.0,0.00041643,31]
[312559415,1705994637258,-500.0,0.00041643,31]
[312559416,1705994637283,-500.0,0.00041643,31]
[312559417,1705994637306,-500.0,0.00041643,31]
[312559418,1705994637329,-507.93624972,0.00041643,31]
[312559419,1705994637351,-514.35786536,0.00041643,31]
[312559420,1705994637374,-500.0,0.00041643,31]
[312559421,1705994637398,-507.75518914,0.00041643,31]
[312559422,1705994637516,-500.0,0.00041643,31]
[312559423,1705994637540,-507.70793356,0.00041643,31]
[312559424,1705994637565,-500.0,0.00041643,31]
[312559425,1705994637589,-500.0,0.00041643,31]
[312559426,1705994637612,-503.69783137,0.00041643,31]
[312559427,1705994637636,-500.0,0.00041643,31]
[312559428,1705994637659,-511.07412406,0.00041643,31]
[312559429,1705994637682,-592.95199255,0.00041643,31]
[312559430,1705994637705,-500.0,0.00041643,31]
[312559431,1705994637728,-500.0,0.00041643,31]
[312559432,1705994637751,-752.44,0.00041643,31]
[312559433,1705994637776,-500.0,0.00041643,31]
[312559434,1705994637800,-500.0,0.00041643,31]
[312559435,1705994637824,-625.17,0.00041643,31]
[312559436,1705994637846,-512.25732439,0.00041643,31]
[312559437,1705994637869,-500.0,0.00041643,31]
[312559438,1705994637893,-506.39660762,0.00041643,31]
[312559439,1705994637915,-500.0,0.00041643,31]
[312559440,1705994637938,-503.33646338,0.00041643,31]
[312559441,1705994637961,-500.0,0.00041643,31]
[312559442,1705994637985,-500.0,0.00041643,31]
[312559443,1705994638008,-1224.59,0.00041643,31]
[312559444,1705994638032,-500.0,0.00041643,31]
[312559445,1705994638055,-500.0,0.00041643,31]
[312559446,1705994638078,-500.0,0.00041643,31]
[312559447,1705994638101,-508.96820946,0.00041643,31]
[312559448,1705994638126,-505.49227665,0.00041643,31]
[312559449,1705994638148,-500.0,0.00041643,31]
[312559450,1705994638172,-500.0,0.00041643,31]
[312559451,1705994638195,-1344.97,0.00041643,31]
[312559452,1705994638219,-500.0,0.00041643,31]
[312559453,1705994638242,-500.0,0.00041643,31]
[312559454,1705994638265,-500.0,0.00041643,31]
[312559455,1705994638289,-352.16277512,0.00041643,31]
[312559456,1705994638312,-508.23124436,0.00041643,31]
[312559457,1705994638336,-1755.36,0.00041643,31]
[312559458,1705994638360,-1542.37,0.00041643,31]
[312559459,1705994638383,-500.0,0.00041643,31]
[312559460,1705994638406,-500.0,0.00041643,31]
[312559461,1705994638430,-500.0,0.00041643,31]
[312559462,1705994638454,-500.0,0.00041643,31]
[312559463,1705994638500,-500.0,0.00041643,31]
[312559464,1705994638540,-500.0,0.00041643,31]
[312559465,1705994638564,-500.0,0.00041643,31]
[312559466,1705994638588,-500.0,0.00041643,31]
[312559467,1705994638611,-500.0,0.00041643,31]
[312559468,1705994638634,-500.0,0.00041643,31]
[312559469,1705994638658,-1570.82,0.00041643,31]
[312559470,1705994638681,-500.0,0.00041643,31]
[312559471,1705994638705,-500.0,0.00041643,31]
[312559472,1705994638728,-500.0,0.00041643,31]
[312559473,1705994638751,-500.0,0.00041643,31]
[312559474,1705994638775,-222.85393327,0.00041643,31]
[312559475,1705994638799,-581.0,0.00041643,31]
[312559476,1705994638822,-500.0,0.00041643,31]
[312559477,1705994638846,-500.0,0.00041643,31]
[312559478,1705994638870,-503.76495786,0.00041643,31]
[312559479,1705994638893,-500.0,0.00041643,31]
[312559480,1705994638917,-500.0,0.00041643,31]
[312559481,1705994638939,-597.5274217,0.00041643,31]
[312559482,1705994638963,-500.0,0.00041643,31]
[312559483,1705994638986,-208.68099468,0.00041643,31]
[312559484,1705994639010,-1622.72,0.00041643,31]
[312559485,1705994639034,-1545.31,0.00041643,31]
[312559486,1705994639058,-500.0,0.00041643,31]
[312559487,1705994639082,-1909.61,0.00041643,31]
[312559488,1705994639105,-500.0,0.00041643,31]
[312559489,1705994639129,-500.0,0.00041643,31]
[312559490,1705994639152,-500.0,0.00041643,31]
[312559491,1705994639176,-500.0,0.00041643,31]
[312559492,1705994639201,-500.0,0.00041643,31]
[312559493,1705994639226,-573.23,0.00041643,31]
[312559494,1705994639249,-953.96,0.00041643,31]
[312559495,1705994639273,-500.0,0.00041643,31]
[312559496,1705994639300,-1776.09,0.00041643,31]
[312559497,1705994639323,-500.0,0.00041643,31]
[312559498,1705994639348,-239.23289201,0.00041643,31]
[312559499,1705994639372,-677.48,0.00041643,31]
[312559500,1705994639395,-500.0,0.00041643,31]
[312559501,1705994639418,-503.81046063,0.00041643,31]
[312559502,1705994639519,-1795.13,0.00041643,31]
[312559503,1705994639561,-500.0,0.00041643,31]
[312559504,1705994639585,-415.22868142,0.00041643,31]
[312559505,1705994639609,-675.39,0.00041643,31]
[312559506,1705994639633,-504.78103749,0.00041643,31]
[312559507,1705994639659,-374.47467961,0.00041643,31]
[312559508,1705994639684,-500.0,0.00041643,31]
[312559509,1705994639708,-500.0,0.00041643,31]
[312559510,1705994639736,-506.43276886,0.00041643,31]
[312559511,1705994639761,-500.0,0.00041643,31]
[312559512,1705994639785,-558.18,0.00041643,31]
[312559513,1705994639810,-500.0,0.00041643,31]
[312559514,1705994639835,-1792.37,0.00041643,31]
[312559515,1705994639859,-500.0,0.00041643,31]
[312559516,1705994639883,-871.27,0.00041643,31]
[312559517,1705994639906,-500.0,0.00041643,31]
[312559518,1705994639930,-500.0,0.00041643,31]
[312559519,1705994639955,-1840.41,0.00041643,31]
[312559520,1705994639979,-500.0,0.00041643,31]
[312559521,1705994640003,-1341.38,0.00041643,31]
[312559522,1705994640029,-1156.76,0.00041643,31]
[312559523,1705994640053,-500.0,0.00041643,31]
[312559524,1705994640077,-500.0,0.00041643,31]
[312559525,1705994640102,-500.0,0.00041643,31]
[312559526,1705994640125,-500.0,0.00041643,31]
[312559527,1705994640150,-500.0,0.00041643,31]
[312559528,1705994640174,-500.0,0.00041643,31]
[312559529,1705994640198,-500.0,0.00041643,31]
[312559530,1705994640222,-500.0,0.00041643,31]
[312559531,1705994640247,-417.81395646,0.00041643,31]
[312559532,1705994640271,-500.0,0.00041643,31]
[312559533,1705994640296,-500.0,0.00041643,31]
[312559534,1705994640320,-500.0,0.00041643,31]
[312559535,1705994640348,-1448.75,0.00041643,31]
[312559536,1705994640372,-500.0,0.00041643,31]
[312559537,1705994640396,-1955.39,0.00041643,31]
[312559538,1705994640420,-500.0,0.00041643,31]
[312559539,1705994640445,-1202.86,0.00041643,31]
[312559540,1705994640470,-347.83890373,0.00041705,30]
[312559541,1705994640495,-150.0,0.000418,30]
[312559542,1705994640519,-1313.5984,0.00041884,30]
[312559543,1705994640543,-347.83890394,0.00041911,30]
[312559544,1705994640569,-831.77,0.00041917,31]
[312559545,1705994640595,-506.12677934,0.00041917,31]
[312559546,1705994640621,-500.0,0.00041917,31]
[312559547,1705994640646,-665.99,0.00041917,31]
[312559548,1705994640671,-500.0,0.00041917,31]
[312559549,1705994640695,-500.0,0.00041917,31]
[312559550,1705994640720,-500.0,0.00041917,31]
[312559551,1705994640746,-542.16,0.00041917,31]
[312559552,1705994640773,-500.0,0.00041917,31]
[312559553,1705994640799,-500.0,0.00041917,31]
[312559554,1705994640822,-625.12,0.00041917,31]
[312559555,1705994640847,-200.0,0.00041917,31]
[312559556,1705994640871,-150.0,0.00041917,31]
[312559557,1705994640895,-500.0,0.00041917,31]
[312559558,1705994640919,-500.0,0.00041917,31]
[312559559,1705994640943,-500.0,0.00041917,31]
[312559560,1705994640967,-500.0,0.00041917,31]
[312559561,1705994640990,-172.90999473,0.00041917,31]
[312559562,1705994641014,-500.0,0.00041917,31]
[312559563,1705994641038,-500.0,0.00041917,31]
[312559564,1705994641062,-500.0,0.00041917,31]
[312559565,1705994641087,-500.0,0.00041917,31]
[312559566,1705994641110,-500.0,0.00041917,31]
[312559567,1705994641134,-507.04740872,0.00041917,31]
[312559568,1705994641159,-500.0,0.00041917,31]
[312559569,1705994641182,-500.0,0.00041917,31]
[312559570,1705994641207,-500.0,0.00041917,31]
[312559571,1705994641231,-500.0,0.00041917,31]
[312559572,1705994641255,-500.0,0.00041917,31]
[312559573,1705994641279,-510.5245075,0.00041917,31]
[312559574,1705994641303,-500.0,0.00041917,31]
[312559575,1705994641326,-500.0,0.00041917,31]
[312559576,1705994641350,-561.32,0.00041917,31]
[312559577,1705994641374,-464.20167144,0.00041917,31]
[312559578,1705994641398,-613.54,0.00041917,31]
[312559579,1705994641422,-579.95612523,0.00041917,31]
[312559580,1705994641446,-500.0,0.00041917,31]
[312559581,1705994641560,-1320.3,0.00041917,31]
[312559582,1705994641585,-507.52692336,0.00041917,31]
[312559583,1705994641610,-509.22179112,0.00041917,31]
[312559584,1705994641635,-505.26858685,0.00041917,31]
[312559585,1705994641659,-515.08,0.00041917,31]
[312559586,1705994641682,-1319.31,0.00041917,31]
[312559587,1705994641706,-500.0,0.00041917,31]
[312559588,1705994641731,-503.69946943,0.00041917,31]
[312559589,1705994641756,-507.84132599,0.00041917,31]
[312559590,1705994641780,-555.72,0.00041917,31]
[312559591,1705994641805,-500.0,0.00041917,31]
[312559592,1705994641828,-500.0,0.00041917,31]
[312559593,1705994641850,-500.0,0.00041917,31]
[312559594,1705994641873,-500.0,0.00041917,31]
[312559595,1705994641896,-283.03941981,0.00041917,31]
[312559596,1705994641919,-416.77341806,0.00041917,31]
[312559597,1705994641943,-500.0,0.00041917,31]
[312559598,1705994641967,-963.53,0.00041917,31]
[312559599,1705994641991,-500.0,0.00041917,31]
[312559600,1705994642015,-1701.55,0.00041917,31]
[312559601,1705994642038,-500.0,0.00041917,31]
[312559602,1705994642062,-1185.15,0.00041917,31]
[312559603,1705994642086,-848.7,0.00041917,31]
[312559604,1705994642110,-500.0,0.00041917,31]
[312559605,1705994642135,-500.0,0.00041917,31]
[312559606,1705994642159,-507.23213335,0.00041917,31]
[312559607,1705994642182,-503.39519387,0.00041917,31]
[312559608,1705994642206,-500.0,0.00041917,31]
[312559609,1705994642229,-500.0,0.00041917,31]
[312559610,1705994642253,-500.0,0.00041917,31]
[312559611,1705994642276,-500.0,0.00041917,31]
[312559612,1705994642299,-500.0,0.00041917,31]
[312559613,1705994642323,-676.15,0.00041917,31]
[312559614,1705994642347,-500.0,0.00041917,31]
[312559615,1705994642370,-500.0,0.00041917,31]
[312559616,1705994642395,-608.28663429,0.00041917,31]
[312559617,1705994642420,-500.0,0.00041917,31]
[312559618,1705994642443,-500.0,0.00041917,31]
[312559619,1705994642466,-500.0,0.00041917,31]
[312559620,1705994642490,-500.0,0.00041917,31]
[312559621,1705994642514,-500.0,0.00041917,31]
[312559622,1705994642538,-513.16960709,0.00041917,31]
[312559623,1705994642562,-460.18705794,0.00041917,31]
[312559624,1705994642585,-752.44,0.00041917,31]
[312559625,1705994642609,-500.0,0.00041917,31]
[312559626,1705994642633,-500.0,0.00041917,31]
[312559627,1705994642657,-625.17,0.00041917,31]